[Event "Early-Titled-Tuesday-Blitz-September-12-2023"]
[Site "Chess.com"]
[Date "2023.09.12"]
[Round "2"]
[White "Nf3c5"]
[Black "Murad_Ibrahimli"]
[Result "0-1"]
[WhiteElo "2581"]
[BlackElo "2907"]
[TimeControl "180+1"]
[EndTime "8:18:14 PDT"]
[Termination "Murad_Ibrahimli won on time"]

1. e4 {[%clk 0:03:00.9]} 1... e6 {[%clk 0:02:59.6]} 2. d4 {[%clk 0:03:00]} 2...
d5 {[%clk 0:03:00.5]} 3. e5 {[%clk 0:03:00.4]} 3... c5 {[%clk 0:02:59.7]} 4. c3
{[%clk 0:03:01.3]} 4... Nc6 {[%clk 0:02:59.2]} 5. Nf3 {[%clk 0:03:02.2]} 5...
Qb6 {[%clk 0:02:59.1]} 6. Bd3 {[%clk 0:03:03.1]} 6... Bd7 {[%clk 0:02:57.2]} 7.
O-O {[%clk 0:03:03.6]} 7... cxd4 {[%clk 0:02:55.2]} 8. Re1 {[%clk 0:03:03.5]}
8... h6 {[%clk 0:02:50.7]} 9. h4 {[%clk 0:03:01.4]} 9... g6 {[%clk 0:02:44.9]}
10. Nbd2 {[%clk 0:02:55.5]} 10... dxc3 {[%clk 0:02:44.6]} 11. bxc3 {[%clk
0:02:55.2]} 11... Nge7 {[%clk 0:02:42.2]} 12. Rb1 {[%clk 0:02:50.8]} 12... Qc7
{[%clk 0:02:42.4]} 13. c4 {[%clk 0:02:50.5]} 13... Bg7 {[%clk 0:02:26.8]} 14.
Ba3 {[%clk 0:02:19.5]} 14... O-O {[%clk 0:01:54.9]} 15. Bd6 {[%clk 0:02:08.7]}
15... Qc8 {[%clk 0:01:54]} 16. c5 {[%clk 0:01:40.7]} 16... Re8 {[%clk
0:01:53.3]} 17. Qb3 {[%clk 0:01:37.5]} 17... b6 {[%clk 0:01:44.6]} 18. Rec1
{[%clk 0:01:35.3]} 18... Nf5 {[%clk 0:01:35.9]} 19. cxb6 {[%clk 0:01:07.5]}
19... axb6 {[%clk 0:01:33.9]} 20. Qxb6 {[%clk 0:01:05.5]} 20... Nxd6 {[%clk
0:01:27.5]} 21. exd6 {[%clk 0:01:05.3]} 21... Rb8 {[%clk 0:01:27.8]} 22. Qc7
{[%clk 0:00:53.1]} 22... Rxb1 {[%clk 0:01:17.3]} 23. Rxb1 {[%clk 0:00:48]} 23...
Qxc7 {[%clk 0:01:17.4]} 24. dxc7 {[%clk 0:00:48.9]} 24... Rc8 {[%clk 0:01:16.3]}
25. Rb7 {[%clk 0:00:48.7]} 25... Kf8 {[%clk 0:01:16.5]} 26. Nb3 {[%clk 0:00:25]}
26... Ke7 {[%clk 0:01:16.6]} 27. Nc5 {[%clk 0:00:22.8]} 27... Be8 {[%clk
0:01:15.7]} 28. Bb5 {[%clk 0:00:15.6]} 28... Kd6 {[%clk 0:01:15.1]} 29. Na6
{[%clk 0:00:15.4]} 29... Bd7 {[%clk 0:00:49.4]} 30. a4 {[%clk 0:00:14.7]} 30...
Bc3 {[%clk 0:00:39.7]} 31. Kf1 {[%clk 0:00:13.4]} 31... Ba5 {[%clk 0:00:39.5]}
32. Bxc6 {[%clk 0:00:05.1]} 32... Bxc6 {[%clk 0:00:36.5]} 33. Rb8 {[%clk
0:00:01.8]} 33... Bd7 {[%clk 0:00:37]} 34. Nd4 {[%clk 0:00:01.3]} 34... e5
{[%clk 0:00:05]} 35. Nb5+ {[%clk 0:00:01.5]} 35... Ke7 {[%clk 0:00:04.9]} 0-1

[Event "Early-Titled-Tuesday-Blitz-September-12-2023"]
[Site "Chess.com"]
[Date "2023.09.12"]
[Round "2"]
[White "Egor_Koshulyan"]
[Black "ajedrezhoy"]
[Result "1-0"]
[WhiteElo "2734"]
[BlackElo "2415"]
[TimeControl "180+1"]
[EndTime "8:18:15 PDT"]
[Termination "Egor_Koshulyan won by checkmate"]

1. e4 {[%clk 0:03:00.9]} 1... Nf6 {[%clk 0:02:59.2]} 2. e5 {[%clk 0:03:00.5]}
2... Nd5 {[%clk 0:02:58.8]} 3. c4 {[%clk 0:03:00.7]} 3... Nb6 {[%clk 0:02:58.7]}
4. c5 {[%clk 0:03:00.5]} 4... Nd5 {[%clk 0:02:58.4]} 5. Bc4 {[%clk 0:03:00.8]}
5... e6 {[%clk 0:02:57.8]} 6. d4 {[%clk 0:03:01.4]} 6... b6 {[%clk 0:02:49.2]}
7. cxb6 {[%clk 0:03:00.9]} 7... axb6 {[%clk 0:02:48]} 8. Nf3 {[%clk 0:03:00.8]}
8... Ba6 {[%clk 0:02:32.7]} 9. b3 {[%clk 0:02:51.4]} 9... Bb4+ {[%clk 0:02:06]}
10. Bd2 {[%clk 0:02:50.7]} 10... Bxd2+ {[%clk 0:02:04]} 11. Nbxd2 {[%clk
0:02:51.6]} 11... O-O {[%clk 0:01:55.3]} 12. O-O {[%clk 0:02:51.2]} 12... Bxc4
{[%clk 0:01:55.2]} 13. bxc4 {[%clk 0:02:52.1]} 13... Nb4 {[%clk 0:01:54.8]} 14.
a3 {[%clk 0:02:50]} 14... N4c6 {[%clk 0:01:50.2]} 15. d5 {[%clk 0:02:12.8]}
15... Na5 {[%clk 0:01:45.1]} 16. Qc2 {[%clk 0:02:06.2]} 16... Na6 {[%clk
0:01:42.9]} 17. Ne4 {[%clk 0:02:06]} 17... h6 {[%clk 0:01:40.4]} 18. Rad1 {[%clk
0:01:58.3]} 18... Qe7 {[%clk 0:01:32.7]} 19. d6 {[%clk 0:01:20]} 19... cxd6
{[%clk 0:01:32.2]} 20. exd6 {[%clk 0:01:20]} 20... Qd8 {[%clk 0:01:29.3]} 21.
Ne5 {[%clk 0:01:18.5]} 21... Rc8 {[%clk 0:01:25.3]} 22. Qe2 {[%clk 0:01:15.5]}
22... Nc5 {[%clk 0:01:21.6]} 23. Nc3 {[%clk 0:01:14.8]} 23... Nc6 {[%clk
0:01:13.9]} 24. f4 {[%clk 0:01:12.5]} 24... Qe8 {[%clk 0:01:04.1]} 25. Nb5
{[%clk 0:01:08.2]} 25... f6 {[%clk 0:01:00.7]} 26. Nxc6 {[%clk 0:00:54.5]} 26...
Rxc6 {[%clk 0:01:00.7]} 27. Na7 {[%clk 0:00:54.9]} 27... Qa8 {[%clk 0:00:53.7]}
28. Nxc6 {[%clk 0:00:55]} 28... Qxc6 {[%clk 0:00:53.7]} 29. f5 {[%clk
0:00:55.4]} 29... e5 {[%clk 0:00:52.6]} 30. Rf3 {[%clk 0:00:48.8]} 30... Ne4
{[%clk 0:00:43.6]} 31. Qd3 {[%clk 0:00:30.1]} 31... Rc8 {[%clk 0:00:36.2]} 32.
Re3 {[%clk 0:00:21.3]} 32... Nc5 {[%clk 0:00:30.6]} 33. Qd5+ {[%clk 0:00:21.4]}
33... Qxd5 {[%clk 0:00:28.8]} 34. Rxd5 {[%clk 0:00:22.3]} 34... Ra8 {[%clk
0:00:22.1]} 35. Rd2 {[%clk 0:00:17.5]} 35... Ra4 {[%clk 0:00:20.6]} 36. Rb2
{[%clk 0:00:17.4]} 36... Ra6 {[%clk 0:00:19.1]} 37. Rb5 {[%clk 0:00:13.3]} 37...
Kf7 {[%clk 0:00:17.8]} 38. Kf2 {[%clk 0:00:13.4]} 38... Ke8 {[%clk 0:00:17.6]}
39. Ke2 {[%clk 0:00:12.8]} 39... Kd8 {[%clk 0:00:17.7]} 40. Rg3 {[%clk
0:00:12.8]} 40... Ne4 {[%clk 0:00:14.3]} 41. Rxg7 {[%clk 0:00:13.3]} 41... Nc3+
{[%clk 0:00:14.1]} 42. Kd3 {[%clk 0:00:10.1]} 42... Nxb5 {[%clk 0:00:12.3]} 43.
Rg8# {[%clk 0:00:10.6]} 1-0

[Event "Early-Titled-Tuesday-Blitz-September-12-2023"]
[Site "Chess.com"]
[Date "2023.09.12"]
[Round "2"]
[White "DeArron_Fox"]
[Black "LamaChampetre"]
[Result "1-0"]
[WhiteElo "2500"]
[BlackElo "2258"]
[TimeControl "180+1"]
[EndTime "8:18:16 PDT"]
[Termination "DeArron_Fox won on time"]

1. d4 {[%clk 0:02:54.4]} 1... Nf6 {[%clk 0:02:58.3]} 2. c4 {[%clk 0:02:54.7]}
2... g6 {[%clk 0:02:56.9]} 3. Nc3 {[%clk 0:02:53.6]} 3... d5 {[%clk 0:02:56.2]}
4. cxd5 {[%clk 0:02:54.5]} 4... Nxd5 {[%clk 0:02:56.8]} 5. e4 {[%clk 0:02:55.3]}
5... Nxc3 {[%clk 0:02:57.4]} 6. bxc3 {[%clk 0:02:56.2]} 6... Bg7 {[%clk
0:02:58]} 7. Be3 {[%clk 0:02:57.1]} 7... c5 {[%clk 0:02:58.6]} 8. Qd2 {[%clk
0:02:57.4]} 8... Qa5 {[%clk 0:02:57]} 9. Nf3 {[%clk 0:02:57.2]} 9... Nc6 {[%clk
0:02:57.3]} 10. Rc1 {[%clk 0:02:55.8]} 10... cxd4 {[%clk 0:02:42]} 11. cxd4
{[%clk 0:02:56.7]} 11... Qxd2+ {[%clk 0:02:41.9]} 12. Kxd2 {[%clk 0:02:57.6]}
12... O-O {[%clk 0:02:28.7]} 13. d5 {[%clk 0:02:44.8]} 13... Rd8 {[%clk
0:02:27.2]} 14. Bc4 {[%clk 0:02:28.2]} 14... Bg4 {[%clk 0:02:23.5]} 15. h3
{[%clk 0:02:09.9]} 15... Bxf3 {[%clk 0:02:22.9]} 16. gxf3 {[%clk 0:02:10.8]}
16... Ne5 {[%clk 0:02:22.3]} 17. Ke2 {[%clk 0:02:09.8]} 17... Nxc4 {[%clk
0:02:12.2]} 18. Rxc4 {[%clk 0:02:10.7]} 18... e6 {[%clk 0:02:12.7]} 19. dxe6
{[%clk 0:01:58.1]} 19... fxe6 {[%clk 0:02:11.2]} 20. Rc7 {[%clk 0:01:58.3]}
20... b5 {[%clk 0:01:55.4]} 21. Rhc1 {[%clk 0:01:50.1]} 21... a5 {[%clk
0:01:48.3]} 22. R1c6 {[%clk 0:01:03.1]} 22... Be5 {[%clk 0:01:04.2]} 23. Rb7
{[%clk 0:00:55.6]} 23... Rac8 {[%clk 0:01:03.5]} 24. Rxe6 {[%clk 0:00:43.3]}
24... Rc2+ {[%clk 0:01:03.3]} 25. Kf1 {[%clk 0:00:42.5]} 25... Bg7 {[%clk
0:00:56.2]} 26. Bb6 {[%clk 0:00:22.1]} 26... Rf8 {[%clk 0:00:43.5]} 27. Bxa5
{[%clk 0:00:13.1]} 27... Rxa2 {[%clk 0:00:39.2]} 28. Rxb5 {[%clk 0:00:07.3]}
28... Bd4 {[%clk 0:00:38.6]} 29. Be1 {[%clk 0:00:02.2]} 29... Rxf3 {[%clk
0:00:35.3]} 30. Kg2 {[%clk 0:00:02.8]} 30... Rf8 {[%clk 0:00:28.9]} 31. Rb7
{[%clk 0:00:01.9]} 31... Bxf2 {[%clk 0:00:28.3]} 32. Bxf2 {[%clk 0:00:02.6]}
32... Raxf2+ {[%clk 0:00:22.4]} 33. Kg3 {[%clk 0:00:03.5]} 33... R8f3+ {[%clk
0:00:09.2]} 34. Kg4 {[%clk 0:00:03.8]} 34... Rf4+ {[%clk 0:00:07.8]} 35. Kg5
{[%clk 0:00:04.2]} 35... Rf8 {[%clk 0:00:03]} 36. Ree7 {[%clk 0:00:03.7]} 1-0

[Event "Early-Titled-Tuesday-Blitz-September-12-2023"]
[Site "Chess.com"]
[Date "2023.09.12"]
[Round "2"]
[White "campochess"]
[Black "Schattman"]
[Result "0-1"]
[WhiteElo "2110"]
[BlackElo "2464"]
[TimeControl "180+1"]
[EndTime "8:18:16 PDT"]
[Termination "Schattman won by resignation"]

1. d4 {[%clk 0:02:52.2]} 1... Nf6 {[%clk 0:02:59.6]} 2. Bg5 {[%clk 0:02:47.5]}
2... c5 {[%clk 0:02:58.5]} 3. Bxf6 {[%clk 0:02:47.1]} 3... gxf6 {[%clk
0:02:56.8]} 4. d5 {[%clk 0:02:46.7]} 4... Qb6 {[%clk 0:02:56.3]} 5. Qc1 {[%clk
0:02:43.8]} 5... Bg7 {[%clk 0:02:56.3]} 6. Nc3 {[%clk 0:02:42.8]} 6... f5 {[%clk
0:02:51.7]} 7. e3 {[%clk 0:02:38.8]} 7... d6 {[%clk 0:02:46]} 8. Nge2 {[%clk
0:02:38.6]} 8... Nd7 {[%clk 0:02:46.1]} 9. g3 {[%clk 0:02:37.6]} 9... h5 {[%clk
0:02:42.6]} 10. h4 {[%clk 0:02:36.5]} 10... Nf6 {[%clk 0:02:40.4]} 11. Bg2
{[%clk 0:02:36]} 11... Ng4 {[%clk 0:02:39.3]} 12. O-O {[%clk 0:02:32.6]} 12...
Bd7 {[%clk 0:02:39.4]} 13. a4 {[%clk 0:02:31.9]} 13... a5 {[%clk 0:02:26.3]} 14.
Ra3 {[%clk 0:02:30.3]} 14... Qc7 {[%clk 0:02:24.8]} 15. e4 {[%clk 0:02:22.8]}
15... Bh6 {[%clk 0:02:16.8]} 16. Qe1 {[%clk 0:02:20.2]} 16... O-O-O {[%clk
0:01:59.5]} 17. Nc1 {[%clk 0:02:11.1]} 17... f4 {[%clk 0:01:49.8]} 18. Nb5
{[%clk 0:02:07.7]} 18... Bxb5 {[%clk 0:01:48.6]} 19. axb5 {[%clk 0:02:07.1]}
19... b6 {[%clk 0:01:48.8]} 20. Nd3 {[%clk 0:02:02.6]} 20... Rhg8 {[%clk
0:01:32.6]} 21. Bh3 {[%clk 0:01:58.4]} 21... Kb7 {[%clk 0:01:31.5]} 22. Kh1
{[%clk 0:01:54.4]} 22... fxg3 {[%clk 0:01:23.9]} 23. fxg3 {[%clk 0:01:53]} 23...
f6 {[%clk 0:01:24.2]} 24. Nf4 {[%clk 0:01:50.8]} 24... Bxf4 {[%clk 0:01:19.6]}
25. gxf4 {[%clk 0:01:50]} 25... Rg7 {[%clk 0:01:12.6]} 26. e5 {[%clk 0:01:27.1]}
26... Rdg8 {[%clk 0:01:05.4]} 27. exf6 {[%clk 0:01:15.4]} 27... exf6 {[%clk
0:01:04.6]} 28. Qe6 {[%clk 0:01:08.4]} 28... Qe7 {[%clk 0:00:50.8]} 29. Bxg4
{[%clk 0:00:52]} 29... hxg4 {[%clk 0:00:44.2]} 30. f5 {[%clk 0:00:49.3]} 30...
Rh8 {[%clk 0:00:38.7]} 31. Re3 {[%clk 0:00:41.8]} 31... Rxh4+ {[%clk 0:00:37.4]}
32. Kg2 {[%clk 0:00:41.9]} 32... Qd8 {[%clk 0:00:27.3]} 33. Qe8 {[%clk
0:00:39.5]} 33... Qxe8 {[%clk 0:00:21]} 34. Rxe8 {[%clk 0:00:38.2]} 34... g3
{[%clk 0:00:21.2]} 35. Re3 {[%clk 0:00:36.2]} 35... Rh2+ {[%clk 0:00:20]} 36.
Kf3 {[%clk 0:00:33.1]} 36... Rxc2 {[%clk 0:00:17.9]} 37. Rfe1 {[%clk 0:00:33]}
37... g2 {[%clk 0:00:14.1]} 38. Re7+ {[%clk 0:00:32.1]} 38... Rxe7 {[%clk
0:00:14.2]} 39. Rxe7+ {[%clk 0:00:31.7]} 39... Kc8 {[%clk 0:00:14.3]} 40. Rg7
{[%clk 0:00:31.5]} 40... Rxb2 {[%clk 0:00:13.6]} 41. Ke4 {[%clk 0:00:23.5]}
41... a4 {[%clk 0:00:12.4]} 42. Kd3 {[%clk 0:00:23]} 42... a3 {[%clk 0:00:12.7]}
43. Kc3 {[%clk 0:00:23.2]} 43... Rf2 {[%clk 0:00:12.5]} 44. Kb3 {[%clk
0:00:20.5]} 44... a2 {[%clk 0:00:12.4]} 45. Ra7 {[%clk 0:00:20.3]} 45... g1=Q
{[%clk 0:00:11.9]} 0-1

[Event "Early-Titled-Tuesday-Blitz-September-12-2023"]
[Site "Chess.com"]
[Date "2023.09.12"]
[Round "2"]
[White "lolo9292"]
[Black "Bigfish1995"]
[Result "1-0"]
[WhiteElo "2197"]
[BlackElo "3046"]
[TimeControl "180+1"]
[EndTime "8:18:20 PDT"]
[Termination "lolo9292 won on time"]

1. d4 {[%clk 0:03:00.9]} 1... h6 {[%clk 0:03:00.9]} 2. e4 {[%clk 0:03:00.4]}
2... Rh7 {[%clk 0:03:01.3]} 3. Nc3 {[%clk 0:02:58.8]} 3... Rh8 {[%clk
0:03:02.2]} 4. Be3 {[%clk 0:02:54.3]} 4... e6 {[%clk 0:03:02.5]} 5. Bd3 {[%clk
0:02:46.6]} 5... d5 {[%clk 0:03:02.6]} 6. Qf3 {[%clk 0:02:43.2]} 6... c6 {[%clk
0:03:02]} 7. Nge2 {[%clk 0:02:38.1]} 7... Nd7 {[%clk 0:03:01.6]} 8. O-O {[%clk
0:02:34.5]} 8... a6 {[%clk 0:03:01.5]} 9. Rae1 {[%clk 0:02:30.3]} 9... Ne7
{[%clk 0:03:00.1]} 10. Nf4 {[%clk 0:02:25.4]} 10... Nf6 {[%clk 0:02:57]} 11. b3
{[%clk 0:02:20.1]} 11... Bd7 {[%clk 0:02:41.9]} 12. e5 {[%clk 0:02:15.9]} 12...
Nh7 {[%clk 0:02:40.9]} 13. Na4 {[%clk 0:02:16]} 13... g6 {[%clk 0:02:32]} 14. c4
{[%clk 0:02:10.7]} 14... Bg7 {[%clk 0:02:31.6]} 15. h4 {[%clk 0:02:06.9]} 15...
h5 {[%clk 0:02:27.7]} 16. Nh3 {[%clk 0:02:03.6]} 16... Nf5 {[%clk 0:02:13.1]}
17. Bxf5 {[%clk 0:01:59]} 17... exf5 {[%clk 0:02:04]} 18. Qg3 {[%clk 0:01:59.9]}
18... dxc4 {[%clk 0:01:40.4]} 19. bxc4 {[%clk 0:01:58.7]} 19... Be6 {[%clk
0:01:40.8]} 20. Nc5 {[%clk 0:01:53.3]} 20... Bxc4 {[%clk 0:01:39.8]} 21. Nxb7
{[%clk 0:01:48.4]} 21... Qd5 {[%clk 0:01:26.3]} 22. Nf4 {[%clk 0:01:39.8]} 22...
Bxa2 {[%clk 0:00:56.5]} 23. Nd6+ {[%clk 0:01:32.8]} 23... Kd7 {[%clk 0:00:53]}
24. Nxd5 {[%clk 0:01:32.4]} 24... Bxd5 {[%clk 0:00:53.9]} 25. Rb1 {[%clk
0:01:31.1]} 25... Ra7 {[%clk 0:00:52.9]} 26. Bg5 {[%clk 0:01:25.6]} 26... Nf8
{[%clk 0:00:49.4]} 27. Rfc1 {[%clk 0:01:22.8]} 27... Ne6 {[%clk 0:00:48.9]} 28.
Qc3 {[%clk 0:01:22.7]} 28... Rha8 {[%clk 0:00:41.4]} 29. Nc4 {[%clk 0:01:20.7]}
29... Ke8 {[%clk 0:00:19.8]} 30. Nb6 {[%clk 0:01:19.9]} 30... Be4 {[%clk
0:00:20]} 31. Nxa8 {[%clk 0:01:18.8]} 31... Rxa8 {[%clk 0:00:20.9]} 32. Rb6
{[%clk 0:01:17.7]} 32... Rc8 {[%clk 0:00:19.2]} 33. Rxa6 {[%clk 0:01:17.2]}
33... Kf8 {[%clk 0:00:19.3]} 34. Qa3+ {[%clk 0:01:16.1]} 34... Kg8 {[%clk
0:00:18.6]} 35. Ra8 {[%clk 0:01:16.8]} 35... Rxa8 {[%clk 0:00:16.3]} 36. Qxa8+
{[%clk 0:01:17.7]} 36... Kh7 {[%clk 0:00:16.8]} 37. f3 {[%clk 0:01:15.5]} 37...
Bd5 {[%clk 0:00:16.1]} 38. Qe8 {[%clk 0:01:14.7]} 38... Nxd4 {[%clk 0:00:16.1]}
39. Be3 {[%clk 0:01:12.4]} 39... Ne2+ {[%clk 0:00:16]} 40. Kf2 {[%clk
0:01:12.8]} 40... Nxc1 {[%clk 0:00:16.1]} 41. Bxc1 {[%clk 0:01:06.8]} 41... c5
{[%clk 0:00:16.5]} 42. Bg5 {[%clk 0:01:06.3]} 42... c4 {[%clk 0:00:12.5]} 43.
Bf6 {[%clk 0:01:06.8]} 43... Be6 {[%clk 0:00:13]} 44. Bxg7 {[%clk 0:01:04.2]}
44... Kxg7 {[%clk 0:00:13.9]} 45. Qd8 {[%clk 0:01:03.8]} 45... Kh7 {[%clk
0:00:10.7]} 46. Ke3 {[%clk 0:01:03.3]} 46... Kg7 {[%clk 0:00:11.1]} 47. Kf4
{[%clk 0:01:03.5]} 47... Kh7 {[%clk 0:00:10.9]} 48. Kg5 {[%clk 0:01:03.7]} 48...
Kg7 {[%clk 0:00:11.6]} 49. g4 {[%clk 0:01:01]} 49... fxg4 {[%clk 0:00:11.3]} 50.
fxg4 {[%clk 0:01:01.9]} 50... Bxg4 {[%clk 0:00:11.5]} 51. Qf6+ {[%clk
0:01:00.8]} 51... Kf8 {[%clk 0:00:11.8]} 52. Qd6+ {[%clk 0:01:00.5]} 52... Kg7
{[%clk 0:00:10]} 53. Qc6 {[%clk 0:00:58.8]} 53... Be6 {[%clk 0:00:09.9]} 54. Qc5
{[%clk 0:00:53.3]} 54... Bf5 {[%clk 0:00:03.4]} 55. Qxc4 {[%clk 0:00:51.6]}
55... Be6 {[%clk 0:00:04.3]} 56. Qc7 {[%clk 0:00:51.5]} 56... Bf5 {[%clk
0:00:04.4]} 57. Qe7 {[%clk 0:00:52.1]} 57... Be6 {[%clk 0:00:05.3]} 58. Qf6+
{[%clk 0:00:52.3]} 58... Kh7 {[%clk 0:00:01.4]} 59. Kf4 {[%clk 0:00:52.5]} 59...
Bd5 {[%clk 0:00:01.2]} 60. Ke3 {[%clk 0:00:52.4]} 60... Be6 {[%clk 0:00:02.1]}
61. Kd4 {[%clk 0:00:53]} 61... Kg8 {[%clk 0:00:02.2]} 62. Kc5 {[%clk 0:00:53.9]}
62... Kf8 {[%clk 0:00:01.8]} 63. Kd6 {[%clk 0:00:54.8]} 1-0

[Event "Early-Titled-Tuesday-Blitz-September-12-2023"]
[Site "Chess.com"]
[Date "2023.09.12"]
[Round "2"]
[White "MightyGMpretender"]
[Black "OlaaLa"]
[Result "1-0"]
[WhiteElo "2812"]
[BlackElo "2426"]
[TimeControl "180+1"]
[EndTime "8:18:21 PDT"]
[Termination "MightyGMpretender won by checkmate"]

1. e4 {[%clk 0:03:00.9]} 1... e5 {[%clk 0:02:53.6]} 2. Bc4 {[%clk 0:03:00.3]}
2... Nf6 {[%clk 0:02:50.8]} 3. d3 {[%clk 0:03:00.5]} 3... c6 {[%clk 0:02:50.3]}
4. Nf3 {[%clk 0:03:00.1]} 4... d5 {[%clk 0:02:49.3]} 5. Bb3 {[%clk 0:03:00.4]}
5... Bg4 {[%clk 0:02:41.1]} 6. h3 {[%clk 0:02:54.8]} 6... Bxf3 {[%clk
0:02:40.2]} 7. Qxf3 {[%clk 0:02:54.7]} 7... Be7 {[%clk 0:02:40.8]} 8. O-O {[%clk
0:02:48.5]} 8... O-O {[%clk 0:02:39.5]} 9. Nc3 {[%clk 0:02:41.2]} 9... d4 {[%clk
0:02:39.2]} 10. Ne2 {[%clk 0:02:40.9]} 10... Ne8 {[%clk 0:02:24.1]} 11. Qg3
{[%clk 0:02:34.8]} 11... Bf6 {[%clk 0:02:19.6]} 12. f4 {[%clk 0:02:33.9]} 12...
Nd7 {[%clk 0:02:15.4]} 13. fxe5 {[%clk 0:02:21.6]} 13... Bxe5 {[%clk 0:02:13.4]}
14. Bf4 {[%clk 0:02:17.8]} 14... Bxf4 {[%clk 0:01:54.4]} 15. Rxf4 {[%clk
0:02:17.6]} 15... Kh8 {[%clk 0:01:49.2]} 16. Rxf7 {[%clk 0:02:10.3]} 16... Rxf7
{[%clk 0:01:43.6]} 17. Bxf7 {[%clk 0:02:10.3]} 17... Nef6 {[%clk 0:01:44.2]} 18.
Rf1 {[%clk 0:01:58.7]} 18... Qe7 {[%clk 0:01:42.4]} 19. Bb3 {[%clk 0:01:54.1]}
19... c5 {[%clk 0:01:38.2]} 20. Nf4 {[%clk 0:01:49.9]} 20... Ne5 {[%clk
0:01:27.9]} 21. Nd5 {[%clk 0:01:26.8]} 21... Nxd5 {[%clk 0:01:25.1]} 22. Bxd5
{[%clk 0:01:27.7]} 22... Re8 {[%clk 0:01:23.3]} 23. Rf5 {[%clk 0:01:23.5]} 23...
b5 {[%clk 0:01:13.8]} 24. Kh2 {[%clk 0:01:17.8]} 24... g6 {[%clk 0:01:12.9]} 25.
Rf1 {[%clk 0:01:17]} 25... c4 {[%clk 0:01:11.8]} 26. Rf4 {[%clk 0:00:50.2]}
26... cxd3 {[%clk 0:01:08.3]} 27. cxd3 {[%clk 0:00:50.1]} 27... Rc8 {[%clk
0:00:52.5]} 28. Rf2 {[%clk 0:00:39.6]} 28... Qc7 {[%clk 0:00:51.3]} 29. Rf6
{[%clk 0:00:29.6]} 29... Kg7 {[%clk 0:00:42.3]} 30. Rf5 {[%clk 0:00:18.9]} 30...
Ng4+ {[%clk 0:00:25.5]} 31. hxg4 {[%clk 0:00:19.1]} 31... Qxg3+ {[%clk
0:00:25.5]} 32. Kxg3 {[%clk 0:00:20]} 32... gxf5 {[%clk 0:00:26.2]} 33. gxf5
{[%clk 0:00:20.2]} 33... Rc2 {[%clk 0:00:26.3]} 34. e5 {[%clk 0:00:18.8]} 34...
Rxb2 {[%clk 0:00:23.3]} 35. Kf4 {[%clk 0:00:17.8]} 35... Rf2+ {[%clk 0:00:22.9]}
36. Kg5 {[%clk 0:00:12.9]} 36... h6+ {[%clk 0:00:21.8]} 37. Kg4 {[%clk
0:00:13.5]} 37... a5 {[%clk 0:00:21]} 38. f6+ {[%clk 0:00:11.4]} 38... Kg6
{[%clk 0:00:21.6]} 39. Be4+ {[%clk 0:00:11.9]} 39... Kf7 {[%clk 0:00:21.8]} 40.
Bd5+ {[%clk 0:00:12.6]} 40... Kg6 {[%clk 0:00:21.6]} 41. Be4+ {[%clk 0:00:13.3]}
41... Kf7 {[%clk 0:00:21.9]} 42. Bd5+ {[%clk 0:00:11.4]} 42... Kf8 {[%clk
0:00:22.2]} 43. Kh5 {[%clk 0:00:10.6]} 43... Rd2 {[%clk 0:00:18.6]} 44. e6
{[%clk 0:00:08.8]} 44... Re2 {[%clk 0:00:15.9]} 45. e7+ {[%clk 0:00:07.7]} 45...
Ke8 {[%clk 0:00:15.3]} 46. Kg6 {[%clk 0:00:08.1]} 46... b4 {[%clk 0:00:12.2]}
47. Bc6# {[%clk 0:00:07.9]} 1-0

[Event "Early-Titled-Tuesday-Blitz-September-12-2023"]
[Site "Chess.com"]
[Date "2023.09.12"]
[Round "2"]
[White "thedjoker98"]
[Black "artin10862"]
[Result "1-0"]
[WhiteElo "2639"]
[BlackElo "2936"]
[TimeControl "180+1"]
[EndTime "8:18:22 PDT"]
[Termination "thedjoker98 won by resignation"]

1. d4 {[%clk 0:03:00.9]} 1... d5 {[%clk 0:02:57.8]} 2. c4 {[%clk 0:03:01.4]}
2... e6 {[%clk 0:02:57.8]} 3. Nc3 {[%clk 0:03:01.3]} 3... Be7 {[%clk 0:02:48.1]}
4. cxd5 {[%clk 0:02:58.9]} 4... exd5 {[%clk 0:02:48]} 5. Bf4 {[%clk 0:02:59.6]}
5... c6 {[%clk 0:02:48]} 6. e3 {[%clk 0:02:59.9]} 6... Bf5 {[%clk 0:02:47.9]} 7.
g4 {[%clk 0:03:00.2]} 7... Be6 {[%clk 0:02:47.8]} 8. Qb3 {[%clk 0:03:00.1]} 8...
Qb6 {[%clk 0:02:46.7]} 9. f3 {[%clk 0:03:00.5]} 9... Nd7 {[%clk 0:02:40.8]} 10.
h4 {[%clk 0:02:59.8]} 10... Ngf6 {[%clk 0:02:37.9]} 11. h5 {[%clk 0:02:55.9]}
11... O-O {[%clk 0:02:36.8]} 12. Bd3 {[%clk 0:02:55.9]} 12... Qd8 {[%clk
0:02:06.4]} 13. Qc2 {[%clk 0:02:46.1]} 13... h6 {[%clk 0:02:05.8]} 14. Nge2
{[%clk 0:02:37.2]} 14... c5 {[%clk 0:02:05.4]} 15. g5 {[%clk 0:02:34.9]} 15...
hxg5 {[%clk 0:01:55.1]} 16. Bxg5 {[%clk 0:02:35.8]} 16... Qa5 {[%clk 0:01:40.6]}
17. Nf4 {[%clk 0:02:29.8]} 17... cxd4 {[%clk 0:01:12.7]} 18. exd4 {[%clk
0:02:30.7]} 18... Bb4 {[%clk 0:01:12]} 19. h6 {[%clk 0:02:01.5]} 19... Rfc8
{[%clk 0:00:54]} 20. Rc1 {[%clk 0:01:53.8]} 20... Ne4 {[%clk 0:00:52]} 21. fxe4
{[%clk 0:01:45.6]} 21... dxe4 {[%clk 0:00:51.1]} 22. Nxe6 {[%clk 0:01:39.1]}
22... fxe6 {[%clk 0:00:40.1]} 23. Qb3 {[%clk 0:01:27.3]} 23... Rc6 {[%clk
0:00:27.8]} 24. d5 {[%clk 0:01:05.4]} 24... exd3 {[%clk 0:00:21]} 25. dxc6
{[%clk 0:01:04.4]} 25... Nc5 {[%clk 0:00:08.8]} 26. cxb7 {[%clk 0:00:54.2]}
26... Rd8 {[%clk 0:00:05.7]} 27. Qc4 {[%clk 0:00:54.1]} 27... Qc7 {[%clk
0:00:04.1]} 28. Rg1 {[%clk 0:00:13.2]} 28... Qe5+ {[%clk 0:00:03.9]} 29. Kd1
{[%clk 0:00:11.8]} 29... Bxc3 {[%clk 0:00:04.3]} 30. Rxc3 {[%clk 0:00:09.9]}
30... Qe2+ {[%clk 0:00:04.7]} 31. Kc1 {[%clk 0:00:10.4]} 31... Qf2 {[%clk
0:00:03.3]} 32. Qg4 {[%clk 0:00:08.6]} 32... d2+ {[%clk 0:00:03.1]} 33. Bxd2
{[%clk 0:00:08.8]} 33... Qxd2+ {[%clk 0:00:03.5]} 34. Kb1 {[%clk 0:00:09.3]}
34... Rd7 {[%clk 0:00:02.3]} 35. b8=Q+ {[%clk 0:00:06.4]} 35... Kh7 {[%clk
0:00:02.4]} 36. hxg7 {[%clk 0:00:03.4]} 36... Qd1+ {[%clk 0:00:01.2]} 1-0